bitfinex-derivatives/quotes_SOLF0:USTF0_20250609
["timestamp","ask_amount","ask_price","bid_price","bid_amount"]
[1749500630325,228.22419556,156.24,156.22,4.87730826]
[1749500630524,222.24296464,156.24,156.23,4.87730826]
[1749500631731,228.64006464,156.24,156.23,4.87730826]
[1749500632728,222.24296464,156.24,156.23,11.27460826]
[1749500633229,0.04422981,156.25,156.23,11.27460826]
[1749500633531,6.44072981,156.25,156.24,4.87730826]
[1749500634632,6.3971,156.24,156.22,0.04567016]
[1749500634824,6.3971,156.24,156.23,4.87730826]
[1749500643635,6.44082981,156.25,156.23,4.87730826]
[1749500643834,6.44082981,156.25,156.24,4.87730826]
[1749500644738,6.3972,156.24,156.22,0.04567016]
[1749500645042,0.04422981,156.25,156.23,4.87730826]
[1749500645238,0.04422981,156.25,156.24,4.87730826]
[1749500645538,6.44072981,156.25,156.24,4.87730826]
[1749500647041,0.04422981,156.25,156.24,4.87730826]
[1749500647639,0.04422981,156.25,156.24,11.27420826]
[1749500648947,224.61063886,156.3,156.24,36.41730826]
[1749500649141,224.61063886,156.3,156.29,4.87730826]
[1749500650246,231.00533886,156.3,156.29,4.87730826]
[1749500654145,224.61063886,156.3,156.29,4.87730826]
[1749500654350,0.04099735,156.31,156.29,4.87730826]
[1749500654650,0.04099735,156.31,156.3,4.87730826]
[1749500655454,6.43499735,156.31,156.3,4.87730826]
[1749500658956,6.3948,156.29,156.28,0.04766265]
[1749500659254,6.3948,156.29,156.28,4.92497091]
[1749500662554,6.3948,156.29,156.28,0.04766265]
[1749500662760,6.3948,156.29,156.28,4.92497091]
[1749500662962,6.3948,156.29,156.28,0.04766265]
[1749500670668,6.3948,156.29,156.28,4.92497091]
[1749500672066,6.3948,156.29,156.28,0.04766265]
[1749500692983,6.3964,156.25,156.24,31.54]
[1749500693187,6.3964,156.25,156.24,36.41730826]
[1749500697888,6.43790484,156.26,156.24,36.41730826]
[1749500698082,6.43790484,156.26,156.25,4.87730826]
[1749500702386,0.04170484,156.26,156.25,11.27370826]
[1749500702880,0.04170484,156.26,156.25,4.87730826]
[1749500703394,6.43770484,156.26,156.24,6.3965]
[1749500703587,6.43770484,156.26,156.25,4.87730826]
[1749500705892,0.04170484,156.26,156.25,11.27370826]
[1749500713695,6.43770484,156.26,156.25,4.87730826]
[1749500713895,0.04170484,156.26,156.23,31.54818527]
[1749500714093,0.04170484,156.26,156.25,4.87730826]
[1749500714585,6.43770484,156.26,156.25,4.87730826]
[1749500714990,6.43770484,156.26,156.23,37.94528527]
[1749500715194,6.43770484,156.26,156.25,4.87730826]
[1749500715588,6.43770484,156.26,156.23,37.94528527]
[1749500715796,6.43770484,156.26,156.25,4.87730826]
[1749500716093,6.43770484,156.26,156.23,37.94528527]
[1749500716399,6.43770484,156.26,156.25,4.87730826]
[1749500721600,6.43770484,156.26,156.25,4.87240913]
[1749500723807,6.43770484,156.26,156.24,11.26920913]
[1749500724007,6.43770484,156.26,156.24,4.87240913]
[1749500725409,6.3965,156.25,156.24,4.87240913]
[1749500725998,6.3965,156.25,156.24,4.87303102]
[1749500727998,6.43790484,156.26,156.24,4.87303102]
[1749500728212,0.04170484,156.26,156.25,4.87303102]
[1749500728710,6.43770484,156.26,156.25,4.87303102]
[1749500743525,6.43770484,156.26,156.25,4.87248444]
[1749500744816,6.43770484,156.26,156.25,4.872494]
[1749500747610,0.04170484,156.26,156.25,4.872494]
[1749500747815,0.04170484,156.26,156.25,4.8724007]
[1749500748121,0.04170484,156.26,156.25,11.2688007]
[1749500748323,0.04170484,156.26,156.25,11.2674967]
[1749500766942,0.04170484,156.26,156.25,42.7474967]
[1749500767435,6.3942,156.31,156.25,42.7474967]
[1749500767641,6.3942,156.31,156.29,4.8710967]
[1749500768942,6.3944,156.3,156.29,4.8710967]
[1749500774748,6.3942,156.31,156.29,4.8710967]
[1749500774952,0.04571423,156.32,156.29,4.8710967]
[1749500775453,6.3943,156.31,156.29,4.8710967]
[1749500782162,6.3943,156.31,156.3,4.8710967]
[1749500784660,6.43951423,156.32,156.3,4.8710967]
[1749500785463,6.43951423,156.32,156.31,4.8710967]
[1749500787159,5.97860589,156.35,156.31,4.8710967]
[1749500787356,8.71571681,156.37,156.34,11.2638967]
[1749500787556,15.10721681,156.37,156.36,4.8710967]
[1749500787758,13.58681351,156.37,156.33,4.8710967]
[1749500788055,6.3926,156.35,156.33,4.8710967]
[1749500788564,13.58681351,156.37,156.33,4.8710967]
[1749500788861,13.58681351,156.37,156.34,4.8710967]
[1749500789063,13.58681351,156.37,156.32,0.04582578]
[1749500789256,13.58681351,156.37,156.34,4.8710967]
[1749500789464,6.3924,156.35,156.34,4.8710967]
[1749500791863,4.8710967,156.35,156.24,399.82]
[1749500792063,4.8710967,156.32,156.28,4.8710967]
[1749500792566,4.8710967,156.31,156.28,4.8710967]
[1749500792762,6.3948,156.29,156.28,4.8710967]
[1749500793166,0.04041091,156.3,156.27,4.91489817]
[1749500793366,6.3948,156.29,156.28,4.8710967]
[1749500794670,6.3952,156.28,156.27,0.04380147]
[1749500794870,6.3952,156.28,156.27,4.91489817]
[1749500797373,6.3952,156.28,156.27,0.04380147]
[1749500797565,6.3952,156.28,156.27,4.91489817]
[1749500818179,6.3952,156.28,156.27,0.04380147]
[1749500823588,11.30590761,156.3,156.27,0.04380147]
[1749500823991,4.8710967,156.29,156.27,0.04380147]
[1749500824485,11.30590761,156.3,156.27,0.04380147]
[1749500825287,11.30590761,156.3,156.27,6.43940147]
[1749500827288,6.3948,156.29,156.27,6.43940147]
[1749500829786,6.43491091,156.3,156.28,6.3951]
[1749500832189,0.04041091,156.3,156.28,6.3951]
[1749500832988,0.04041091,156.3,156.29,6.3948]
[1749500833192,0.04041091,156.3,156.29,11.26436943]
[1749500849809,0.04041091,156.3,156.29,6.3948]
[1749500850005,0.04041091,156.3,156.29,11.26436943]
[1749500857515,6.392,156.36,156.33,11.26246943]
[1749500858514,13.58013297,156.37,156.33,4.90995674]
[1749500858715,7.60668035,156.37,156.33,4.90995674]
[1749500859718,6.3926,156.35,156.33,4.90995674]
[1749500863023,6.3922,156.36,156.33,11.30295674]
[1749500863223,7.60668035,156.37,156.33,11.30295674]
[1749500864218,6.392,156.36,156.33,11.30295674]
[1749500864620,6.392,156.36,156.34,4.86956943]
[1749500864924,6.3924,156.35,156.34,4.86956943]
[1749500865726,6.3924,156.35,156.33,4.90995674]
[1749500869626,6.3928,156.34,156.33,4.90995674]
[1749500870931,6.3926,156.35,156.33,4.90995674]
[1749500873032,6.3926,156.35,156.34,4.86956943]
[1749500874932,6.3921,156.36,156.34,4.86956943]
[1749500877133,13.99838035,156.37,156.34,11.26226943]
[1749500877738,9.12881092,156.37,156.34,11.26226943]
[1749500878140,6.392,156.36,156.34,11.26226943]
[1749500878838,6.392,156.36,156.34,4.86956943]
[1749500880842,6.392,156.36,156.34,11.26226943]
[1749500881043,9.12891092,156.37,156.35,4.86956943]
[1749500881643,6.392,156.36,156.35,4.86956943]
[1749500882846,6.392,156.36,156.34,36.28956943]
[1749500883745,6.392,156.36,156.34,42.68226943]
[1749500885251,6.392,156.36,156.34,36.28956943]
[1749500885951,6.3924,156.35,156.34,36.28956943]
[1749500886248,2.73711092,156.37,156.34,36.28956943]
[1749500886440,2.73711092,156.37,156.34,42.68226943]
[1749500886645,6.3922,156.36,156.34,42.68226943]
[1749500887242,6.3922,156.36,156.35,4.86956943]
[1749500890254,9.12871092,156.37,156.35,11.26196943]
[1749500890450,9.12871092,156.37,156.35,4.86956943]
[1749500891746,6.392,156.36,156.35,4.86956943]
[1749500897857,6.3924,156.35,156.34,36.28956943]
[1749500901856,6.3921,156.36,156.34,36.28956943]
[1749500903258,6.3921,156.36,156.35,4.86956943]
[1749500909561,6.3921,156.36,156.34,36.28956943]
[1749500910462,6.3921,156.36,156.34,42.68226943]
[1749500912555,6.3921,156.36,156.34,42.66226943]
[1749500913060,6.3924,156.35,156.34,36.26956943]
[1749500921564,6.3924,156.35,156.34,4.86956943]
[1749500923569,6.3928,156.34,156.33,0.04038731]
[1749500923764,5.98056631,156.34,156.3,31.38]
[1749500923968,5.98056631,156.34,156.31,4.86956943]
[1749500923969,10.85013574,156.34,156.31,4.86956943]
[1749500924464,6.3939,156.32,156.31,4.86956943]
[1749500924871,11.53685571,156.32,156.31,4.86956943]
[1749500927875,5.14295571,156.32,156.31,4.86956943]
[1749500929476,5.14295571,156.32,156.31,11.26356943]
[1749500929676,0.04388638,156.33,156.31,11.26356943]
[1749500929871,0.04388638,156.33,156.32,4.86956943]
[1749500930077,5.17876208,156.33,156.32,4.86956943]
[1749500930281,5.17876208,156.33,156.32,11.26316943]
[1749500931680,0.04388638,156.33,156.32,11.26316943]
[1749500933377,0.04388638,156.33,156.32,4.86956943]
[1749500934279,0.04388638,156.33,156.32,11.26316943]
[1749500938596,0.04388638,156.33,156.32,42.64316943]
[1749500945292,0.04388638,156.33,156.32,37.7736]
[1749500945497,5.1949017,156.33,156.32,31.38]
[1749500945796,10.06447113,156.33,156.32,31.38]
[1749500945996,16.45767113,156.33,156.32,31.38]
[1749500946496,11.5881017,156.33,156.32,31.38]
[1749500946694,6.3937,156.32,156.3,4.91857772]
[1749500946993,5.15101532,156.31,156.3,37.82340829]
[1749500947297,5.15101532,156.31,156.3,6.44340829]
[1749500947798,5.15101532,156.31,156.3,37.82340829]
[1749500948393,5.15101532,156.31,156.3,42.69297772]
[1749500948598,5.15101532,156.31,156.3,4.91857772]
[1749500948798,5.15101532,156.31,156.3,36.29857772]
[1749500949597,6.3936,156.32,156.3,36.29857772]
[1749500949797,6.3936,156.32,156.31,4.86956943]
[1749500950000,11.53287978,156.32,156.31,4.86956943]
[1749500958208,11.53287978,156.32,156.3,36.29857772]
[1749500958408,6.3936,156.32,156.3,36.29857772]
[1749500959607,5.12861556,156.31,156.3,36.29857772]
[1749500959805,6.3936,156.32,156.3,36.29857772]
[1749500960003,5.12861471,156.31,156.3,36.29857772]
[1749500960308,6.3936,156.32,156.3,36.29857772]
[1749500960807,6.394,156.31,156.3,36.29857772]
[1749500963507,6.394,156.31,156.3,31.42900829]
[1749500963706,11.52273855,156.31,156.3,31.42900829]
[1749500964607,6.394,156.31,156.3,31.42900829]
[1749500965110,6.3938,156.32,156.3,36.29857772]
[1749500965809,6.43728638,156.33,156.3,42.69297772]
[1749500966002,5.12877042,156.32,156.3,42.69297772]
[1749500966203,6.43728638,156.33,156.3,42.69297772]
[1749500966400,5.12889568,156.32,156.3,42.69297772]
[1749500966600,6.43728638,156.33,156.3,42.69297772]
[1749500966800,5.12898889,156.32,156.31,6.394]
[1749500967004,0.04388638,156.33,156.31,4.86956943]
[1749500967201,0.04388638,156.33,156.32,4.86956943]
[1749500967396,0.04388638,156.33,156.32,11.26316943]
[1749500968202,0.04388638,156.33,156.32,4.86956943]
[1749500968608,0.04388638,156.33,156.32,11.26316943]
[1749500986120,0.04388638,156.33,156.32,6.3936]
[1749500986320,0.04388638,156.33,156.32,11.26316943]
[1749500986816,0.04388638,156.33,156.32,6.3936]
[1749500987022,10.05180867,156.33,156.3,0.04900829]
[1749500987318,5.13835286,156.32,156.3,0.04900829]
[1749500987520,4.91345581,156.33,156.3,0.04900829]
[1749500987826,6.394,156.31,156.3,0.04900829]
[1749500990221,11.5276505,156.31,156.3,0.04900829]
[1749500990427,6.394,156.31,156.3,0.04900829]
[1749500992923,11.52178098,156.31,156.3,0.04900829]
[1749500993526,6.394,156.31,156.3,0.04900829]
[1749500994930,6.3938,156.32,156.3,4.91857772]
[1749500995227,0.04388638,156.33,156.31,4.86956943]
[1749500996528,5.12188864,156.32,156.31,4.86956943]
[1749500996729,5.12188864,156.32,156.31,11.26346943]
[1749500997030,6.43718638,156.33,156.31,11.26346943]
[1749500997828,0.04388638,156.33,156.32,11.26316943]
[1749501000523,2.73711092,156.37,156.32,4.86956943]
[1749501000729,5.12876048,156.36,156.33,36.22956943]
[1749501000930,5.12876048,156.35,156.33,36.22956943]
[1749501001130,4.86956943,156.36,156.33,36.22956943]
[1749501001328,11.52578889,156.35,156.33,36.22956943]
[1749501001528,6.3926,156.35,156.33,36.22956943]
[1749501002033,2.73711092,156.37,156.34,4.86956943]
[1749501002231,5.13228146,156.36,156.35,4.86956943]
[1749501002734,5.13228146,156.36,156.35,11.26186943]
[1749501003127,5.13228146,156.36,156.35,4.86956943]
[1749501005135,11.52428146,156.36,156.33,37.753]
[1749501005334,6.392,156.36,156.34,4.86956943]
[1749501007537,6.392,156.36,156.35,4.86956943]
[1749501007734,11.5312791,156.36,156.35,4.86956943]
[1749501008133,5.1392791,156.36,156.35,4.86956943]
[1749501014236,5.1392791,156.36,156.34,6.3927]
[1749501014538,5.13967316,156.35,156.33,36.22956943]
[1749501014730,7.60668035,156.37,156.33,36.22956943]
[1749501014934,11.53187771,156.36,156.34,4.86956943]
[1749501015241,5.13967771,156.35,156.34,4.86956943]
[1749501016541,5.13967771,156.35,156.34,11.26236943]
[1749501016942,5.13967771,156.35,156.34,4.86956943]
[1749501018344,5.13697097,156.35,156.34,4.86956943]
[1749501018550,11.52937097,156.35,156.34,4.86956943]
[1749501018840,5.13697097,156.35,156.34,4.86956943]
[1749501019044,2.73711092,156.37,156.34,4.86956943]
[1749501019242,11.52894958,156.36,156.34,4.86956943]
[1749501019547,2.73711092,156.37,156.35,4.86956943]
[1749501019745,5.13651758,156.36,156.35,4.86956943]
[1749501020445,5.13651758,156.36,156.35,11.26196943]
[1749501023150,2.73711092,156.37,156.35,11.26196943]
[1749501023151,2.73711092,156.37,156.36,6.392]
[1749501023355,7.87199908,156.37,156.36,11.26156943]
[1749501026452,2.73711092,156.37,156.36,11.26156943]
[1749501054786,2.73711092,156.37,156.36,42.60156943]
[1749501057688,2.73711092,156.37,156.36,11.26156943]
[1749501057985,2.73711092,156.37,156.36,42.60156943]
[1749501059888,2.73711092,156.37,156.36,11.26156943]
[1749501060187,2.73711092,156.37,156.36,42.60156943]
[1749501064793,5.97933224,156.41,156.39,6.3903]
[1749501064993,5.15603456,156.4,156.39,6.3903]
[1749501065288,5.15603456,156.4,156.38,0.04273181]
[1749501065593,5.15603456,156.39,156.38,6.43373181]
[1749501066193,5.15603456,156.39,156.38,11.30330124]
[1749501068389,6.3895,156.42,156.39,6.3907]
[1749501068590,5.14984595,156.41,156.4,4.86956943]
[1749501068993,11.53974595,156.41,156.4,4.86956943]
[1749501069393,5.14984595,156.41,156.4,4.86956943]
[1749501072197,11.53974595,156.41,156.4,4.86956943]
[1749501074198,5.14984595,156.41,156.4,4.86956943]
[1749501075502,11.53974595,156.41,156.39,4.86956943]
[1749501075700,5.14984595,156.4,156.39,4.86956943]
[1749501076099,6.3899,156.41,156.39,4.86956943]
[1749501077200,5.14850435,156.4,156.38,6.43373181]
[1749501077401,6.3899,156.41,156.39,4.86956943]
[1749501077601,5.14850435,156.4,156.39,4.86956943]
[1749501078001,6.3899,156.41,156.39,4.86956943]
[1749501078803,6.3903,156.4,156.39,4.86956943]
[1749501079099,11.53850021,156.4,156.39,4.86956943]
[1749501079408,11.53850021,156.4,156.38,0.04273181]
[1749501079604,6.3901,156.41,156.39,4.86956943]
[1749501079800,5.14810958,156.4,156.38,0.04273181]
[1749501080106,6.3915,156.37,156.36,31.44]
[1749501080298,5.14846821,156.37,156.34,36.30956943]
[1749501080498,4.86956943,156.38,156.34,36.30956943]
[1749501080805,11.53818638,156.37,156.34,42.70226943]
[1749501081104,5.14638638,156.36,156.35,4.86956943]
[1749501083104,6.43405477,156.37,156.35,4.86956943]
[1749501088505,0.04225477,156.37,156.36,4.86956943]
[1749501089704,0.04225477,156.37,156.36,11.26156943]
[1749501095215,0.04225477,156.37,156.36,42.70156943]
[1749501095405,0.04225477,156.37,156.36,37.832]
[1749501095607,0.04225477,156.37,156.36,42.70156943]
[1749501096816,0.04225477,156.37,156.36,37.832]
[1749501097014,0.04225477,156.37,156.36,42.70156943]
[1749501097414,0.04225477,156.37,156.36,6.392]
[1749501097710,0.04225477,156.37,156.36,42.70156943]
[1749501097917,0.04225477,156.37,156.36,37.832]
[1749501098110,0.04225477,156.37,156.36,42.70156943]
[1749501098311,0.04225477,156.37,156.36,11.26156943]
[1749501098718,0.04225477,156.37,156.36,4.86956943]
[1749501100317,0.04225477,156.37,156.35,37.8322]
[1749501100510,0.04225477,156.37,156.35,42.70176943]
[1749501101317,0.04225477,156.37,156.35,11.26176943]
[1749501103714,6.43395477,156.37,156.35,11.26176943]
[1749501105119,6.43395477,156.37,156.35,4.86956943]
[1749501105725,6.43395477,156.37,156.34,6.43493654]
[1749501105927,6.43395477,156.37,156.35,4.86956943]
[1749501108333,6.43395477,156.37,156.34,6.43493654]
[1749501108534,6.43395477,156.37,156.35,4.86956943]
[1749501114830,0.04225477,156.37,156.36,4.86956943]
[1749501115025,5.17320907,156.37,156.36,4.86956943]
[1749501115225,11.56470907,156.37,156.36,4.86956943]
[1749501118741,11.56470907,156.37,156.35,11.26186943]
[1749501118939,6.43375477,156.37,156.35,11.26186943]
[1749501122143,5.13783195,156.36,156.35,11.26186943]
[1749501135557,5.13783195,156.36,156.35,42.60186943]
[1749501138757,0.04225477,156.37,156.36,6.392]
[1749501138952,5.1824683,156.37,156.36,11.26156943]
[1749501143758,0.04225477,156.37,156.36,11.26156943]
[1749501153962,175.66305511,156.42,156.4,6.3901]
[1749501154162,175.66305511,156.42,156.41,4.86956943]
[1749501154362,180.78582979,156.42,156.41,4.86956943]
[1749501155864,180.78582979,156.42,156.41,11.25946943]
[1749501157862,180.78582979,156.42,156.41,4.86956943]
[1749501159170,180.78582979,156.42,156.41,11.25946943]
[1749501159467,180.78582979,156.42,156.41,4.86956943]
[1749501160468,185.65539922,156.42,156.4,0.04572465]
[1749501160669,9.99234411,156.41,156.4,0.04572465]
[1749501160873,9.99234411,156.41,156.38,31.34]
[1749501161073,11.51327468,156.4,156.38,31.34]
[1749501161276,6.3905,156.4,156.38,31.34]
[1749501161470,175.66305511,156.42,156.36,36.20956943]
[1749501161471,16.38277579,156.39,156.36,36.20956943]
[1749501161668,11.26056943,156.39,156.36,36.20956943]
[1749501161963,11.30672779,156.39,156.36,36.251325]
[1749501162167,6.43715836,156.39,156.36,36.251325]
[1749501162673,6.43715836,156.39,156.36,42.643325]
[1749501163973,6.43715836,156.39,156.36,11.303325]
[1749501164176,6.43715836,156.39,156.36,42.643325]
[1749501164770,0.04615836,156.39,156.38,4.86956943]
[1749501164971,5.16897912,156.39,156.38,4.86956943]
[1749501165572,0.04615836,156.39,156.38,4.86956943]
[1749501165772,5.16098913,156.39,156.38,4.86956943]
[1749501168175,0.04615836,156.39,156.38,4.86956943]
[1749501168776,0.04615836,156.39,156.37,6.3913]
[1749501168777,0.04615836,156.39,156.37,11.26086943]
[1749501171479,0.04615836,156.39,156.38,6.3911]
[1749501174684,5.16378799,156.39,156.38,6.3911]
[1749501179688,5.16378799,156.39,156.37,4.86956943]
[1749501179689,5.16378799,156.39,156.37,11.26096943]
[1749501179985,0.04615836,156.39,156.37,11.26096943]
[1749501183590,0.04615836,156.39,156.38,6.3911]
[1749501183785,5.16840051,156.39,156.38,6.3911]
[1749501184587,5.16840051,156.39,156.37,11.26086943]
[1749501184893,5.12224215,156.38,156.37,11.26086943]
[1749501217319,5.12224215,156.38,156.37,6.3913]
[1749501221327,5.12224215,156.38,156.37,11.26086943]
[1749501226832,5.12224215,156.38,156.37,4.86956943]
[1749501227032,9.99547088,156.38,156.36,0.04175557]
[1749501227233,5.12590145,156.37,156.36,0.04175557]
[1749501227631,5.12590145,156.37,156.36,4.911325]
[1749501228433,5.12590145,156.37,156.36,11.303325]
[1749501234232,5.98913328,156.42,156.36,4.911325]
[1749501234433,8.15623328,156.44,156.41,4.86956943]
[1749501234737,8.15623328,156.44,156.42,11.25886943]
[1749501235637,13.02580271,156.44,156.41,11.30263741]
[1749501235833,7.03666943,156.44,156.41,11.30263741]
[1749501238333,2.1671,156.44,156.41,11.30263741]
[1749501238534,2.1671,156.44,156.42,6.3895]
[1749501241041,2.1671,156.44,156.41,11.30263741]
[1749501241640,2.1671,156.44,156.41,4.91293741]
[1749501242743,2.1671,156.44,156.41,11.30253741]
[1749501242944,8.5558,156.44,156.41,11.30253741]
[1749501243340,2.1671,156.44,156.41,11.30253741]
[1749501243541,7.03666943,156.44,156.41,11.30253741]
[1749501243739,4.86956943,156.44,156.41,11.30253741]
[1749501243940,175.45863471,156.45,156.41,11.30253741]
[1749501244136,175.45863471,156.45,156.41,4.91293741]
[1749501244846,4.86956943,156.44,156.41,4.91293741]
[1749501245246,6.3891,156.43,156.41,4.91293741]
[1749501248248,6.3891,156.43,156.41,11.30283741]
[1749501249548,6.3891,156.43,156.41,6.43326798]
[1749501249843,9.99887497,156.42,156.37,36.18956943]
[1749501250041,4.86956943,156.4,156.37,36.18956943]
[1749501250847,11.30151327,156.4,156.38,6.3911]
[1749501251357,11.30151327,156.4,156.37,37.75669777]
[1749501251655,11.26036943,156.39,156.37,37.75669777]
[1749501251845,4.86956943,156.39,156.37,37.75669777]
[1749501252647,4.86956943,156.39,156.38,6.3911]
[1749501252852,11.30161327,156.4,156.38,6.3911]
[1749501253548,11.30161327,156.4,156.37,31.36539777]
[1749501253753,11.30161327,156.4,156.37,37.75669777]
[1749501257153,5.12356362,156.39,156.37,37.75669777]
[1749501257353,11.30161327,156.4,156.37,37.75669777]
[1749501257555,5.12367932,156.39,156.37,37.75669777]
[1749501257754,11.30161327,156.4,156.37,42.6262672]
[1749501257959,5.12367932,156.39,156.37,42.6262672]
[1749501258160,11.30161327,156.4,156.37,42.6262672]
[1749501258355,5.12382407,156.39,156.37,42.6262672]
[1749501258559,11.30161327,156.4,156.37,42.6262672]
[1749501258858,5.12372579,156.39,156.38,11.26066943]
[1749501259055,5.98913328,156.47,156.38,4.86956943]
[1749501259258,4.86956943,156.49,156.46,4.86956943]
[1749501259465,5.12010272,156.48,156.46,4.86956943]
[1749501259760,9.12356943,156.5,156.46,11.25716943]
[1749501259961,9.99049745,156.49,156.46,4.86956943]
[1749501260157,5.12092802,156.48,156.47,6.3874]
[1749501260359,4.86956943,156.49,156.47,6.3874]
[1749501260966,4.86956943,156.49,156.46,11.30475061]
[1749501261366,9.9800417,156.49,156.46,11.30475061]
[1749501261867,5.11047227,156.49,156.46,11.30475061]
[1749501262164,5.11047227,156.49,156.46,4.91705061]
[1749501262361,5.10828684,156.49,156.46,4.91705061]
[1749501262759,9.97785627,156.49,156.46,0.04748118]
[1749501262966,9.97785627,156.49,156.46,4.91705061]
[1749501263368,16.36475627,156.49,156.46,4.91705061]
[1749501263570,11.25646943,156.49,156.46,4.91705061]
[1749501264269,11.25646943,156.49,156.46,11.30475061]
[1749501264768,11.25646943,156.49,156.46,6.43518118]
[1749501265072,11.25646943,156.49,156.47,6.3874]
[1749501265666,11.25646943,156.49,156.46,6.43518118]
[1749501267666,6.3871,156.48,156.46,6.43518118]
[1749501268366,11.25666943,156.48,156.46,6.43518118]
[1749501268568,4.86956943,156.47,156.46,0.04748118]
[1749501268768,4.86956943,156.48,156.46,0.04748118]
[1749501269368,9.99490083,156.48,156.46,0.04748118]
[1749501269668,11.25706943,156.47,156.46,0.04748118]
[1749501270063,16.382516,156.47,156.46,0.04748118]
[1749501271269,16.3773022,156.47,156.46,0.04748118]
[1749501271471,11.50773277,156.47,156.46,0.04748118]
[1749501271672,11.25706943,156.47,156.46,0.04748118]
[1749501272068,6.3875,156.47,156.46,0.04748118]
[1749501272964,11.25706943,156.47,156.46,0.04748118]
[1749501274370,6.3875,156.47,156.46,0.04748118]
[1749501274577,11.25706943,156.47,156.46,0.04748118]
[1749501275677,6.3875,156.47,156.46,0.04748118]
[1749501276475,11.25626943,156.49,156.46,0.04748118]
[1749501277071,11.25626943,156.49,156.46,11.30475061]
[1749501277272,6.3871,156.48,156.46,4.91705061]
[1749501277577,4.86956943,156.47,156.46,0.04748118]
[1749501277778,11.25706943,156.47,156.46,0.04748118]
[1749501280471,11.25676943,156.48,156.46,0.04748118]
[1749501281274,6.3872,156.48,156.46,0.04748118]
[1749501284782,6.3872,156.48,156.46,4.91705061]
[1749501285081,6.3875,156.47,156.46,4.91705061]
[1749501285379,6.3875,156.47,156.46,0.04748118]
[1749501299592,11.5125658,156.48,156.46,0.04748118]
[1749501299793,6.3872,156.48,156.46,0.04748118]
[1749501301588,5.13050893,156.47,156.46,0.04748118]
[1749501306196,11.51800893,156.47,156.46,0.04748118]
[1749501306496,6.3875,156.47,156.46,0.04748118]
[1749501308298,11.24836303,156.47,156.46,0.04748118]
[1749501315190,16.39571788,156.47,156.46,0.04748118]
[1749501315393,11.24836303,156.47,156.46,0.04748118]
[1749501325205,6.3875,156.47,156.46,0.04748118]
[1749501325903,11.24836303,156.47,156.46,0.04748118]
[1749501331507,6.3875,156.47,156.46,0.04748118]
[1749501337414,11.24836303,156.47,156.46,0.04748118]
[1749501351227,6.3875,156.47,156.46,0.04748118]
[1749501351735,11.24836303,156.47,156.46,0.04748118]
[1749501354241,10.6406,156.5,156.46,0.04748118]
[1749501354437,4.86086303,156.47,156.46,0.04748118]
[1749501356343,4.86086303,156.47,156.46,6.43538118]
[1749501357644,4.86086303,156.47,156.46,0.04748118]
[1749501363950,11.24836303,156.47,156.46,0.04748118]
[1749501365448,4.86086303,156.47,156.46,0.04748118]
[1749501366647,11.24836303,156.47,156.46,0.04748118]
[1749501390771,16.38557565,156.47,156.46,0.04748118]
[1749501390969,22.3650848,156.47,156.46,0.04748118]
[1749501391967,16.38557565,156.47,156.46,0.04748118]
[1749501393771,22.3650848,156.47,156.46,0.04748118]
[1749501395569,16.38557565,156.47,156.46,0.04748118]
[1749501401771,22.3650848,156.47,156.46,0.04748118]
[1749501401961,16.38557565,156.47,156.46,0.04748118]
[1749501405973,5.13721262,156.47,156.46,0.04748118]
[1749501406376,9.99807565,156.47,156.46,0.04748118]
[1749501406577,16.38557565,156.47,156.46,0.04748118]
[1749501423693,11.52471262,156.47,156.46,0.04748118]
[1749501423895,5.13721262,156.47,156.46,0.04748118]
[1749501425087,16.38557565,156.47,156.46,0.04748118]
[1749501425592,16.38035916,156.47,156.46,0.04748118]
[1749501425796,9.99285916,156.47,156.46,0.04748118]
[1749501426792,5.13199613,156.47,156.46,6.43538118]
[1749501427000,5.13199613,156.47,156.46,11.29624421]
[1749501427300,10.84332813,156.51,156.46,4.90834421]
[1749501427498,11.51737501,156.5,156.48,4.86086303]
[1749501427798,5.13107501,156.49,156.48,4.86086303]
[1749501428999,5.13107501,156.49,156.48,11.24796303]
[1749501430703,5.13107501,156.49,156.48,4.86086303]
[1749501431702,5.13107501,156.49,156.48,11.24796303]
[1749501432294,5.13107501,156.49,156.48,4.86086303]
[1749501432902,5.13107501,156.49,156.47,42.50816303]
[1749501433099,6.3863,156.5,156.47,42.50816303]
[1749501433301,5.12761848,156.49,156.47,42.50816303]
[1749501433499,6.3863,156.5,156.47,42.50816303]
[1749501433700,5.12692889,156.49,156.47,42.50816303]
[1749501433907,6.3866,156.49,156.47,31.26]
[1749501434198,9.98787272,156.48,156.47,31.26]
[1749501434499,9.98787272,156.48,156.46,0.04748118]
[1749501434801,4.86086303,156.47,156.46,0.04748118]
[1749501435005,9.98817171,156.47,156.46,0.04748118]
[1749501435206,16.37567171,156.47,156.46,0.04748118]
[1749501443313,11.51480868,156.47,156.46,0.04748118]
[1749501443511,16.37567171,156.47,156.46,0.04748118]